Cogmind - Beta 14 @@@ ROGUE MODE // 2024.09.21 @ 19:26:15 Player: siona Result: Destroyed by G-34 Mercenary with Small Laser Performance ------------- Evolutions (0) 0 Regions Visited (1) 200 Robots Destroyed (24) 120 Value Destroyed (397) 397 Prototype IDs (0) 0 Alien Tech Used (0) 0 Bonus (0) 0 TOTAL SCORE: 717 Bonus ------- None Cogmind --------- Core Integrity 0/250 Matter 274/300 Energy 248/250 System Corruption 2% Temperature Cool (7) Movement Treading (160) Location -10/Materials Parts ------- > --- POWER (1) -------- Ion Engine > --- PROPULSION (2) --- Light Treads > --- UTILITY (2) ------ Medium Storage Unit Structural Scanner > --- WEAPON (2) ------- Light Assault Rifle > --- INVENTORY (10) --- Ion Engine Light Ion Engine Light Treads Aluminum Leg Improved Heat Sink Signal Interpreter Light Assault Rifle Light Assault Rifle Mining Laser Peak State ------------ > --- POWER ------------ Ion Engine > --- PROPULSION ------- Light Treads Light Treads > --- UTILITY ---------- Medium Storage Unit Structural Scanner > --- WEAPON ----------- Particle Gun Light Assault Rifle > --- INVENTORY -------- Ion Engine Light Ion Engine Light Treads Light Treads Aluminum Leg Aluminum Leg Improved Heat Sink Light Assault Rifle Light Assault Rifle Mining Laser [Rating: 9] Favorites ----------- Power Ion Engine Engine Ion Engine Propulsion Light Treads Treads Light Treads Utility Structural Scanner Device Structural Scanner Storage Medium Storage Unit Weapon Light Assault Rifle Energy Gun Particle Gun Ballistic Gun Light Assault Rifle Build | -11 -10 ------- Run | Yrd Mat Slots Evolved . | . . Power . | . . Propulsion . | . . Utility . | . . Weapon . | . . Parts Attached 16 | 4 12 Power 2 | 1 1 Engine 2 | 1 1 Core . | . . Reactor . | . . Propulsion 4 | . 4 Treads 4 | . 4 Leg . | . . Wheel . | . . Hover . | . . Flight . | . . Utility 3 | 1 2 Device 1 | . 1 Storage 2 | 1 1 Processor . | . . Hackware . | . . Protection . | . . Artifact . | . . Weapon 7 | 2 5 Energy Gun 1 | . 1 Energy Cannon . | . . Ballistic Gun 6 | 2 4 Ballistic Cannon . | . . Launcher . | . . Special Weapon . | . . Impact Weapon . | . . Slashing Weapon . | . . Piercing Weapon . | . . Special Melee Weapon . | . . Unidentified Prototypes . | . . Parts Lost 4 | . 4 Power . | . . Propulsion 2 | . 2 Utility . | . . Weapon 2 | . 2 Highest Loss Streak 2 | . 2 To Critical Strikes . | . . Average Slot Usage (%) 83 | . 83 Engine 14 | . 14 Treads 14 | . 14 Device 13 | . 13 Storage 14 | . 14 Energy Gun 3 | . 3 Ballistic Gun 23 | . 23 Peak Build Rating 9 | 4 9 Average Rating 6 | 3 6 On Entrance 2 | . 4 Naked Turns . | . . Heaviest Build 20 | 13 20 Greatest Support 40 | 3 40 Greatest Overweight (x) 6 | 4 6 Average Overweight (x) 1 | 2 1 Largest Inventory Capacity 10 | 8 10 Average Capacity 8 | 7 9 Most Carried 10 | 6 10 Average Carried 7 | 4 7 Final Capacity 10 | 8 10 Final Carried 9 | 6 9 Class Distribution -------------------- 66% | Mutant 33% | Scavenger-Mutant Dominant Class ---------------- Mutant | -10/Materials Resources | -11 -10 ----------- Run | Yrd Mat Matter Collected 552 | 100 452 Remotely . | . . Salvage Created 635 | 13 622 Parts 49 | 1 48 Haulers Intercepted 1 | . 1 Recyclers Shooed 4 | . 4 Parts Field Recycled . | . . Retrieved Matter . | . . Parts Self-Destructed . | . . Prevented . | . . Kills | -11 -10 ------- Run | Yrd Mat Combat Hostiles Destroyed 13 | . 13 Guns 13 | . 13 Classes Destroyed 8 | 1 7 Worker 4 | . 4 Tunneler 1 | 1 . Hauler 1 | . 1 Recycler 2 | . 2 Operator 1 | . 1 Watcher 2 | . 2 Swarmer 6 | . 6 Grunt 7 | . 7 Best Kill Streak 2 | 1 2 Combat Bots Only 2 | . 2 Max Kills in Single Turn 1 | 1 1 Gunslinging . | . . Exploded . | . . Melee . | . . Uniques/NPCs Destroyed . | . . Combat | -11 -10 -------- Run | Yrd Mat Hostile Shots Fired 138 | . 138 Missed 40 | . 40 Damage Taken 1046 | . 1046 Core 259 | . 259 Absorbed by Shields . | . . Core Remaining (%) 100 | 100 . Volleys Fired 109 | 9 100 Largest 2 | 2 2 Hottest 85 | 40 85 Shots Fired 186 | 18 168 Gun 186 | 18 168 Cannon . | . . Launcher . | . . Special . | . . Kinetic 167 | 18 149 Thermal 19 | . 19 Explosive . | . . Electromagnetic . | . . Robot Hit Streak 12 | 4 12 Robot Miss Streak 4 | 1 4 Penetration Max . | . . Secondary Targets 1 | . 1 Max Gunslinging Chain 1 | . 1 Shots Hit Robots 117 | 12 105 Core Hits 47 | 3 44 Critical Kills . | . . Critical Parts Destroyed . | . . Critical Strikes 1 | . 1 Burn 1 | . 1 Melee Attacks . | . . Impact . | . . Slashing . | . . Piercing . | . . Sneak Attacks . | . . Combat Hostiles . | . . Follow-up Attacks . | . . Damage Inflicted 1148 | 128 1020 Guns 1130 | 128 1002 Cannons . | . . Explosions . | . . Melee . | . . Ramming 18 | . 18 Kinetic 916 | 128 788 Thermal 214 | . 214 Explosive . | . . Electromagnetic . | . . Impact . | . . Slashing . | . . Piercing . | . . Highest Corruption 2 | . 2 Average Corruption 1 | . 1 Corruption Purged . | . . Corruption Blocked . | . . Effects 10 | . 10 Message Errors 4 | . 4 Heat Flow Errors 3 | . 3 Energy Discharges 2 | . 2 Parts Rejected 1 | . 1 Overload Shots . | . . Overflow Damage . | . . Projectiles . | . . Explosions . | . . Melee . | . . Knockbacks . | . . Impact . | . . Kinetic . | . . Secondary . | . . Self-Inflicted Damage 4 | . 4 Shots . | . . Rammed 5 | . 5 Targets Rammed 5 | . 5 Kicked . | . . Crushed . | . . Highest Temperature 280 | . 280 Average Temperature 87 | . 87 Received Heat Transfer 345 | . 345 Siege Activations . | . . Robots Corrupted . | . . Combat Hostiles . | . . Parts Fried . | . . Impact Corruptions . | . . Robots Melted . | . . Combat Hostiles . | . . Parts Melted . | . . Heat Transferred 592 | . 592 Parts Sabotaged . | . . Parts Stolen . | . . Parts Stripped . | . . Power Chain Reactions . | . . Alert | -11 -10 ------- Run | Yrd Mat Peak Influence 277 | 5 277 Initial 3 | . 3 Average 87 | 1 101 Maximum Alert Level 1 | . 1 Low Security (%) 91 | 100 90 Level 1 8 | . 9 Level 2 . | . . Level 3 . | . . Level 4 . | . . Level 5 . | . . High Security . | . . Max Security . | . . Squads Dispatched 3 | . 3 Investigation 2 | . 2 Extermination . | . . Reinforcement 1 | . 1 Assault . | . . Garrison . | . . Intercept . | . . Searches Triggered . | . . Construction Impeded . | . . Haulers Reinforced . | . . Active Scanning Responses . | . . Cargo Convoy Interrupts . | . . Stealth | -11 -10 --------- Run | Yrd Mat Distress Signals 1 | . 1 Communications Jammed . | . . Distress Signals . | . . Times Spotted 33 | . 33 Peak Tracking Total 5 | . 5 Tactical Retreats 6 | . 6 Traps | -11 -10 ------- Run | Yrd Mat Traps Triggered 3 | . 3 Indirectly . | . . Trap Hack Attempts . | . . Triggered . | . . Disarmed . | . . Reprogrammed . | . . Reused . | . . Traps Extracted . | . . Installed . | . . Triggered . | . . Machines | -11 -10 ---------- Run | Yrd Mat Machines Disabled . | . . Max in Single Turn . | . . Machines Repaired . | . . Machines Dismantled . | . . Machines Sabotaged . | . . Overloaded Fab Kills . | . . Hacking | -11 -10 --------- Run | Yrd Mat Machines Accessed 3 | . 3 Terminals 2 | . 2 Fabricators . | . . Repair Stations . | . . Recycling Units 1 | . 1 Scanalyzers . | . . Garrison Access . | . . Total Hacks 12 | . 12 Successful 5 | . 5 Failed 7 | . 7 Catastrophic . | . . Database Lockouts . | . . Manual . | . . Terminals 9 | . 9 Fabricators . | . . Repair Stations . | . . Recycling Units 3 | . 3 Scanalyzers . | . . Garrison Access . | . . Terminal Hacks 3 | . 3 Record 3 | . 3 Fabricator Hacks . | . . Repair Station Hacks . | . . Recycling Unit Hacks 2 | . 2 Recycle Component 1 | . 1 Process 1 | . 1 Scanalyzer . | . . Garrison Access Hacks . | . . Unauthorized Hacks . | . . Terminals . | . . Fabricators . | . . Repair Stations . | . . Recycling Units . | . . Scanalyzers . | . . Garrison Access . | . . Data Cores Recovered . | . . Used . | . . Hacking Detections 3 | . 3 Full Trace Events 1 | . 1 Feedback Events . | . . Feedback Blocked . | . . Robot Schematics Acquired . | . . Robots Built . | . . Authchips . | . . Time . | . . Total Robot Build Rating . | . . Part Schematics Acquired . | . . Parts Built . | . . Authchips . | . . Time . | . . Total Part Build Rating . | . . Parts Repaired . | . . Time . | . . Parts Recycled 1 | . 1 Recycled Matter 196 | . 196 Retrieved Matter . | . . Retrieved Components . | . . Parts Scanalyzed . | . . Part Schematics Acquired . | . . Parts Damaged . | . . Bothacking | -11 -10 ------------ Run | Yrd Mat Used RIF Installer . | . . Robots Hacked . | . . Non-combat . | . . Combat . | . . Robot Hacks Applied . | . . Relay Couplers Released . | . . Fabnet Peak Effective % . | . . Robots Rewired . | . . Allies Hacked . | . . Hacks Repelled . | . . Allies | -11 -10 -------- Run | Yrd Mat Total Allies . | . . Largest Group . | . . Highest-Rated Group . | . . Highest-Rated Ally . | . . Total Orders . | . . Ally Attacks . | . . Total Damage . | . . Kills . | . . Allies Corrupted . | . . Allies Melted . | . . Intel | -11 -10 ------- Run | Yrd Mat Robot Analysis Total . | . . Derelict Logs Recovered . | . . Drone Launches . | . . Drone Recoveries . | . . Exploration | -11 -10 ------------- Run | Yrd Mat Turns Passed 1423 | 197 1226 Spaces Moved 550 | 98 452 Core 258 | 98 160 Treads 292 | . 292 Legs . | . . Wheels . | . . Hover . | . . Flight . | . . Fastest Speed 50 | 50 160 Average Speed 187 | 165 192 Slowest Speed 350 | 250 350 Overloaded Moves . | . . Propulsion Burnouts . | . . Robots Hopped . | . . Cave-ins Triggered . | . . Exploration Rate (%) 26 | 7 45 Regions Visited 1 Branch Regions . Pre-discovered Areas . | . . Known Exits Taken . | . . Unknown Exits Taken 1 | 1 . Scrap Searched . | . . Spaces Dug . | . . Terrain Destroyed . | . . Melee . | . . Projectile . | . . AOE . | . . Terrain Rammed . | . . Walls Destroyed . | . . Machines Disabled . | . . Actions | -11 -10 --------- Run | Yrd Mat Total 775 | 116 659 Wait 80 | . 80 Move 549 | 97 452 Hop . | . . Pick Up 13 | 6 7 Fast Attach 6 | 4 2 Attach 4 | . 4 Detach . | . . Swap 6 | . 6 Drop 3 | . 3 Fire 109 | 9 100 Melee . | . . Ram 2 | . 2 Kick . | . . Crush 3 | . 3 Escape Stasis . | . . Rewire . | . . Trap . | . . Miscellaneous . | . . Route ------- -11/Scrapyard -10/Materials (discovered 2 exits: [*Mat] / [*Min]) History --------- Turn | Location | Event 4 | -11/Scrapyard | Discovered new exit (range 16) 198 | -11/Scrapyard | Entered Materials 301 | -10/Materials | Discovered new exit (range 16) 304 | -10/Materials | Build established: Mutant 537 | -10/Materials | Discovered new exit (range 10) 804 | -10/Materials | Core integrity fell below 50% 1154 | -10/Materials | Build established: Scavenger-Mutant 1302 | -10/Materials | Core integrity fell below 20% 1424 | -10/Materials | Destroyed by G-34 Mercenary with Small Laser Last Messages --------------- Unit. 01288_ Triggered Alarm Trap. 01288_ An alarm sounds. 01288_ ALERT: Alarm triggered, dispatching investigation squad. 01291_ R-06 Scavenger collects Sensor Array. 01293_ S-10 Pest destroyed. 01294_ R-06 Scavenger collects Hover Unit. 01295_ K-01 Serf collects debris. 01297_ Acquired 4 matter. 01300_ K-01 Serf collects debris. 01308_ U-05 Engineer lays Concrete. 01308_ K-01 Serf collects debris. 01309_ U-05 Engineer lays Concrete. 01315_ Lgt. Treads destroyed. 01328_ System corrupted: Lgt. Treads rejected. 01328_ G-34 Mercenary destroyed. 01345_ Particle Gun destroyed. 01345_ K-01 Serf collects debris. 01391_ K-01 Serf cleans the Nuclear Reactor. Map ----- +----------------------------------------------------+ | | | | | | | | | ?????????????????????#############?????????????? | | ?????????????????????## ##?????????????? | | ?????????????????????## ##?????????????? | | ?????????????????????## ##?????????????? | | ?????????????????????## ##?????????????? | | ?????????????????????## ##?????????????? | | ?????????????????????## """ """ ##?????????????? | | ?????????????????????## """ """ # ?????????????? | | ??????????????? # ??## """ """ # ?????????????? | | ????????????? ###??######+##### ?????????????? | | ?????????????? ### ##### ??????? # ???? | | ???????????? ### ##??????????? # ???? | | ???????????? ##### # # ???? | | ??????????????????##+##### ############ # ???? | | ?????????????????? # # ##???? | | ?????????????????? # + = ##???? | | ?????????????????? # # % ##???? | | ?????????????????? # """ ##= ####?? | | ?????????????????? # """ ##" ############?? | | ?????????????????? # """ ##T [#= ##?? | | ?????????????????? # """ ##" %g* """ ##?? | | ?????????????????? # @ =# """"" ##?? | | ?????????????????? ######## # """"" ##?? | | ??????????????????#########+####### """"" ##?? | | ????????????????????????? ###[ """ ##?? | | ?????????????????????????????????## ##?? | | ?????????????????????????????????## = % ##?? | | ?????????????????????????????????####+########?? | | ?????????????????????????????????## [% #####?? | | ?????????????????????????????????## ##????? | | ?????????????????????????????????## ##????? | | ?????????????????????????????????## ##????? | | ???????????????????????????######## ##????? | | ??????????????????????????? ####### ##????? | | ??????????????????????????? # ###+#####????? | | ??????????????????????????? # ##????? | | ??????????????????????????? # ##????? | | ??????????????????????????? + ##????? | | ?????????????????????######## ## ######????? | | ???? ????????????????############### ######????? | | ???? ????????????????## = #### ##????????? | | ??? ????????????????## !! #### ##????????? | | ??? ????????????????## !! #### ##????????? | | ??? # ??????????????## """ + ##????????? | | ?? # ??????????????##"" """ # ##????????? | | ??## # ??????????????##"Y """ # ##????????? | +----------------------------------------------------+ Best States ------------- Heat Dissipation 25 Energy Generation 10 Energy Capacity 250 Matter Stores 300 Matter Capacity 300 Sight Range 16 Terrain Scan Density 10 Evasion (%) 50 Recoil Reduction 2 Item Schematics ----------------- None Robot Schematics ------------------ None Fabricated ------------ Nothing Alien Tech Used ----------------- None Achievements -------------- None Challenges ------------ None Game ------ Seed ExplosiveBoltReconstructor Manual? 0 Play Time 00:19:02 Cumulative 11.7 hours Start 2024.09.21 @ 18:35:31 End 2024.09.21 @ 19:26:15 Sessions 1 Manual Loads 0 Difficulty Rogue Special Mode None Game No. 20 Rogue 19 Adventurer 1 Explorer 0 Win Type - Total 0 Types 0/0/0/0/0/0/0/0/0 Lore% 11 Gallery% 14 Achievement% 16 Wizard Run 0 Options --------- Layout 1 ASCII 0 Keyboard 0 Movement Arrows Keybinds 0 Fullscreen 1 Font 32/SmallcapsGlow Map View 50x35 Zoom Use 0% Tactical HUD 1 Map Filters NONE Filters NONE Steam 1 RUN: bd3fae9d-430f-480e-b845-58ed3d6d6ba9